bitfinex/quotes_ETHUSD_20250908
["timestamp","ask_amount","ask_price","bid_price","bid_amount"]
[1757361726968,6.34139666,4293.9,4293.8,0.00200001]
[1757361727347,6.12499521,4293.9,4293.8,0.00200001]
[1757361728896,6.12344036,4293.9,4293.8,0.00200001]
[1757361730198,7.121,4294.2,4293.8,0.30180001]
[1757361730555,0.792,4294.1,4293.8,0.30180001]
[1757361732590,0.792,4294.1,4293.8,0.00200001]
[1757361732898,7.121,4294.2,4294.0,0.2998]
[1757361733197,7.121,4294.2,4294.0,2.62859319]
[1757361733824,0.001,4294.2,4294.1,6.27977669]
[1757361733948,0.001,4294.2,4294.1,6.57957669]
[1757361736264,0.001,4294.2,4294.1,4.2508]
[1757361738105,0.001,4294.2,4294.1,3.948]
[1757361738106,3.53872246,4294.2,4294.1,3.948]
[1757361738264,4.13948773,4294.2,4294.1,3.948]
[1757361738462,1.36676527,4294.2,4294.1,3.948]
[1757361738678,0.766,4294.2,4293.9,1.788]
[1757361739024,0.9102,4294.1,4294.0,3.949]
[1757361739311,1.209,4294.1,4294.0,3.949]
[1757361741392,0.765,4294.1,4294.0,3.949]
[1757361742107,0.116,4294.0,4293.9,1.788]
[1757361742313,3.65383092,4294.0,4293.9,5.525]
[1757361742493,1.325,4294.0,4293.9,5.525]
[1757361743255,1.325,4294.0,4293.9,3.737]
[1757361743406,1.34834554,4294.0,4293.9,3.737]
[1757361744249,0.116,4294.0,4293.9,3.737]
[1757361744379,0.116,4294.0,4293.9,4.0368]
[1757361745243,0.116,4294.0,4293.9,3.943]
[1757361745635,0.792,4293.9,4293.8,0.00200001]
[1757361745791,1.7022,4293.9,4293.8,3.94500001]
[1757361745990,2.001,4293.9,4293.8,3.94500001]
[1757361746352,4.32988516,4293.9,4293.8,3.94500001]
[1757361747137,4.3532307,4293.9,4293.8,3.94500001]
[1757361747295,5.0620393,4293.9,4293.8,3.94500001]
[1757361747488,5.03869376,4293.9,4293.8,0.00200001]
[1757361748742,4.29589376,4293.9,4293.8,0.00200001]
[1757361749099,5.03869376,4293.9,4293.8,0.00200001]
[1757361750326,0.792,4294.0,4293.8,0.00200001]
[1757361750681,3.942,4294.1,4293.8,0.30180001]
[1757361750682,0.792,4294.1,4293.8,0.30180001]
[1757361750979,3.12088516,4293.9,4293.8,0.00200001]
[1757361751328,3.42208516,4293.9,4293.8,0.00200001]
[1757361751837,3.12088516,4293.9,4293.8,0.00200001]
[1757361752827,0.792,4293.9,4293.8,0.31170001]
[1757361753028,0.792,4294.1,4293.8,0.31170001]
[1757361753813,0.793,4294.2,4293.8,0.31170001]
[1757361753931,3.12083558,4294.0,4293.8,0.31170001]
[1757361754129,3.12083558,4294.0,4293.8,0.00200001]
[1757361754340,4.3666307,4293.9,4293.8,0.00200001]
[1757361754743,4.34328516,4293.9,4293.8,0.00200001]
[1757361754973,3.87528516,4293.9,4293.8,0.00200001]
[1757361755331,0.792,4293.9,4293.8,0.00200001]
[1757361755531,0.792,4294.1,4293.8,0.31170001]
[1757361756434,3.12172574,4294.2,4293.8,0.31170001]
[1757361757081,0.793,4294.2,4293.8,0.31170001]
[1757361757300,2.32878703,4294.1,4293.8,0.31170001]
[1757361759108,2.32883204,4294.0,4293.8,0.31170001]
[1757361759604,0.001,4294.2,4293.8,0.00200001]
[1757361759745,3.08328516,4293.9,4293.8,0.00200001]
[1757361760187,3.55128516,4293.9,4293.8,0.00200001]
[1757361760895,3.55022697,4293.9,4293.8,0.00200001]
[1757361761268,12.80243596,4293.9,4293.8,0.00200001]
[1757361761465,12.93207362,4293.9,4293.8,0.00200001]
[1757361762369,12.80243596,4293.9,4293.8,0.00200001]
[1757361764476,12.93206911,4293.9,4293.8,0.00200001]
[1757361765701,5.209085,4293.9,4293.8,0.00200001]
[1757361766292,5.33875333,4293.9,4293.8,0.00200001]
[1757361767775,5.33975333,4293.9,4293.8,0.00200001]
[1757361768896,12.93310429,4293.9,4293.8,0.00200001]
[1757361769088,13.14924554,4293.9,4293.8,0.00200001]
[1757361770785,13.14924554,4293.9,4293.7,0.002]
[1757361770786,3.1209394,4293.8,4293.7,1e-08]
[1757361770999,20.30590023,4293.8,4293.7,1e-08]
[1757361771210,22.12674497,4293.8,4293.7,1e-08]
[1757361771711,22.12674497,4293.8,4293.3,0.002]
[1757361771712,13.71450733,4293.4,4293.3,0.002]
[1757361771861,18.49021465,4293.4,4293.3,0.002]
[1757361772058,21.98052262,4293.4,4293.3,0.002]
[1757361772763,13.91817166,4293.4,4293.3,0.002]
[1757361773011,14.38617166,4293.4,4293.3,0.002]
[1757361773311,10.88927392,4293.4,4293.3,0.002]
[1757361773468,10.67313267,4293.4,4293.3,0.002]
[1757361773663,10.88881617,4293.4,4293.3,0.002]
[1757361773868,10.67313267,4293.4,4293.3,0.002]
[1757361775429,3.2508247,4293.4,4293.3,0.002]
[1757361775610,7.50637024,4293.4,4293.3,0.002]
[1757361775785,7.4830247,4293.4,4293.3,0.002]
[1757361775972,8.4042247,4293.4,4293.3,0.002]
[1757361777030,9.38790797,4293.8,4293.3,0.3117]
[1757361777173,9.44897709,4293.8,4293.3,0.7725]
[1757361777369,2.328995,4293.7,4293.4,0.4608]
[1757361777630,0.792,4293.6,4293.4,0.4608]
[1757361777849,0.792,4293.7,4293.4,0.4608]
[1757361778134,3.12099364,4293.7,4293.6,0.3097]
[1757361778804,7.12,4293.8,4293.6,0.7705]
[1757361779008,7.12,4293.8,4293.6,0.9464]
[1757361779327,0.001,4293.9,4293.7,0.6367]
[1757361779919,0.001,4293.9,4293.8,0.7705]
[1757361780223,3.12188516,4293.9,4293.3,1.79]
[1757361780437,2.32900326,4293.7,4293.3,5.721]
[1757361780791,0.02434554,4293.9,4293.3,5.721]
[1757361780792,0.116,4293.5,4293.3,1.79]
[1757361781300,0.116,4293.5,4293.4,0.3138]
[1757361782538,0.116,4293.5,4293.3,1.79]
[1757361782741,2.4451137,4293.5,4293.3,1.79]
[1757361784992,2.32915637,4293.4,4293.3,1.79]
[1757361785446,2.44511146,4293.5,4293.3,1.79]
[1757361786740,2.44511146,4293.5,4293.3,0.002]
[1757361786741,11.51460733,4293.4,4293.3,0.002]
[1757361786944,11.95840733,4293.4,4293.3,0.002]
[1757361787149,12.08781551,4293.4,4293.3,0.002]
[1757361787302,15.88840733,4293.4,4293.3,0.002]
[1757361787640,16.23339457,4293.4,4293.3,0.002]
[1757361787845,18.64342904,4293.4,4293.3,0.002]
[1757361788296,2.19,4293.3,4292.8,1e-08]
[1757361788499,8.38535096,4292.9,4292.8,1e-08]
[1757361788799,11.20381836,4292.9,4292.8,1e-08]
[1757361789135,12.13801836,4292.9,4292.8,1e-08]
[1757361789443,14.34408721,4292.9,4292.8,1e-08]
[1757361790518,10.41308721,4292.9,4292.8,1e-08]
[1757361790722,21.4407347,4292.9,4292.8,1e-08]
[1757361790975,19.23466585,4292.9,4292.8,1e-08]
[1757361792279,12.13712508,4292.9,4292.8,1e-08]
[1757361792454,11.64131489,4292.9,4292.8,1e-08]
[1757361792861,12.13701337,4292.9,4292.8,1e-08]
[1757361793071,13.84728324,4292.9,4292.8,1e-08]
[1757361793786,20.96728324,4292.9,4292.8,1e-08]
[1757361795575,20.91728324,4292.9,4292.8,1e-08]
[1757361795778,10.47105559,4292.9,4292.8,1e-08]
[1757361795963,13.38042765,4292.9,4292.8,0.31380001]
[1757361796292,13.69012765,4292.9,4292.8,1e-08]
[1757361796655,13.38042765,4292.9,4292.8,1e-08]
[1757361797584,14.17242765,4292.9,4292.8,1e-08]
[1757361798100,14.17242765,4292.9,4292.8,0.31380001]
[1757361798398,14.17242765,4292.9,4292.8,1e-08]
[1757361798399,17.68423562,4292.9,4292.8,1e-08]
[1757361798756,17.24043562,4292.9,4292.8,1e-08]
[1757361798948,17.68423562,4292.9,4292.8,1e-08]
[1757361801458,17.81328948,4292.9,4292.8,1e-08]
[1757361801887,17.68423562,4292.9,4292.8,1e-08]
[1757361802448,17.68523562,4292.9,4292.8,1e-08]
[1757361802866,17.81429105,4292.9,4292.8,1e-08]
[1757361803634,18.02935168,4292.9,4292.8,1e-08]
[1757361803962,28.09944157,4292.9,4292.8,1e-08]
[1757361804283,27.6038996,4292.9,4292.8,1e-08]
[1757361806549,31.09932166,4292.9,4292.8,1e-08]
[1757361806746,31.09932166,4292.9,4291.1,0.04]
[1757361806747,0.792,4292.5,4291.1,0.04]
[1757361806889,0.792,4291.5,4291.1,0.04]
[1757361807218,13.0065984,4291.2,4291.1,0.04]
[1757361807423,7.05335048,4291.2,4291.1,0.04]
[1757361807629,7.05335048,4291.2,4291.1,0.3538]
[1757361810645,7.12,4292.4,4291.1,0.5297]
[1757361810920,2.32963886,4292.6,4291.2,0.1759]
[1757361811237,2.32963886,4292.6,4292.5,0.3111]
[1757361811452,7.4476535,4292.6,4292.5,0.3111]
[1757361811836,8.2396535,4292.6,4292.5,0.3111]
[1757361812018,7.4476535,4292.6,4292.5,0.3111]
[1757361812611,8.2396535,4292.6,4292.5,0.3111]
[1757361813075,7.06163886,4292.6,4292.5,0.3111]
[1757361814842,3.12164472,4292.5,4291.6,0.4608]
[1757361815059,2.32984897,4292.2,4291.6,0.4608]
[1757361815360,3.937,4292.2,4291.7,0.4608]
[1757361815512,3.937,4292.2,4292.1,0.3111]
[1757361815707,3.12165653,4292.5,4292.1,0.7719]
[1757361815907,0.792,4292.3,4292.2,0.4608]
[1757361816110,2.33028507,4291.4,4291.1,0.04]
[1757361816363,0.02334554,4291.3,4291.1,0.04]
[1757361816714,0.02334554,4291.3,4291.2,0.3111]
[1757361817342,6.26828507,4291.4,4291.2,0.3111]
[1757361817343,3.938,4291.4,4291.2,0.3111]
[1757361817577,3.938,4291.4,4291.3,0.4608]
[1757361817779,3.938,4291.4,4291.3,0.3111]
[1757361818778,0.792,4291.5,4291.3,0.3111]
[1757361819154,0.792,4291.6,4291.3,0.3111]
[1757361819829,3.12213946,4291.6,4291.3,0.3111]
[1757361820261,3.935,4291.7,4291.4,0.4608]
[1757361820462,0.001,4291.9,4291.6,0.3111]
[1757361820665,3.935,4291.8,4291.6,0.7719]
[1757361820871,3.936,4291.9,4291.6,0.3111]
[1757361821081,0.001,4291.9,4291.7,0.4608]
[1757361821285,0.001,4291.9,4291.8,0.7719]
[1757361821501,0.001,4291.9,4291.8,0.3111]
[1757361821677,0.001,4291.9,4291.3,2.33025703]
[1757361821678,0.116,4291.8,4291.1,0.3339]
[1757361821832,0.116,4291.8,4291.1,3.158]
[1757361822032,0.116,4291.8,4291.7,0.3111]
[1757361822272,0.116,4291.8,4291.1,0.158]
[1757361822273,0.792,4291.7,4291.1,0.158]
[1757361822450,0.116,4291.2,4291.1,0.042]
[1757361822865,0.116,4291.2,4291.1,0.3531]
[1757361823100,0.116,4291.2,4291.1,0.042]
[1757361823234,2.76195048,4291.2,4291.1,0.042]
[1757361823685,0.4316,4291.2,4291.1,0.042]
[1757361823831,0.116,4291.2,4291.1,0.042]
[1757361824032,0.116,4291.2,4291.1,0.3531]
[1757361824239,0.116,4291.2,4291.1,0.8139]
[1757361824958,0.116,4291.2,4291.1,0.3531]
[1757361825136,0.116,4291.5,4291.2,2.33034754]
[1757361825485,0.116,4291.7,4291.4,0.3111]
[1757361825983,0.116,4291.7,4291.5,0.4608]
[1757361826188,0.116,4291.7,4291.4,0.3111]
[1757361827939,2.44609099,4291.7,4291.4,0.3111]
[1757361828283,0.001,4291.9,4291.1,0.042]
[1757361828284,2.3301767,4291.6,4291.1,0.042]
[1757361828452,0.116,4291.4,4291.1,0.042]
[1757361828655,2.44624734,4291.4,4291.1,0.042]
[1757361828873,0.116,4291.4,4291.1,0.042]
[1757361829256,2.3301983,4291.5,4291.1,0.042]
[1757361829480,2.33012234,4291.7,4291.4,0.3111]
[1757361829673,2.33014001,4291.6,4291.4,0.3111]
[1757361829848,2.33097734,4291.9,4291.1,0.042]
[1757361829849,0.116,4291.4,4291.1,0.042]
[1757361830586,0.116,4291.4,4291.3,0.3111]
[1757361832150,2.33029618,4291.3,4291.1,0.042]
[1757361832590,2.80959618,4291.3,4291.1,0.042]
[1757361833086,0.3156,4291.2,4291.1,0.042]
[1757361833286,3.55975048,4291.2,4291.1,0.042]
[1757361837299,4.94308454,4291.2,4291.1,0.042]
[1757361837451,5.07235992,4291.2,4291.1,0.042]
[1757361838356,5.07237732,4291.2,4291.1,0.042]
[1757361839670,9.00537732,4291.2,4291.1,0.042]
[1757361840117,8.87608454,4291.2,4291.1,0.042]
[1757361840286,9.00537877,4291.2,4291.1,0.042]
[1757361841317,5.07237877,4291.2,4291.1,0.042]
[1757361841491,9.00537877,4291.2,4291.1,0.042]
[1757361844493,9.00538892,4291.2,4291.1,0.042]
[1757361844688,9.22090161,4291.2,4291.1,0.042]
[1757361844943,9.00538892,4291.2,4291.1,0.042]
[1757361845121,5.07238892,4291.2,4291.1,0.042]
[1757361845323,9.00538892,4291.2,4291.1,0.042]
[1757361847156,2.92168454,4291.2,4291.1,0.3392]
[1757361847355,3.933,4291.2,4291.1,0.3392]
[1757361847657,6.26335048,4291.2,4291.1,0.3392]
[1757361849260,2.33035048,4291.2,4291.1,0.3392]
[1757361849423,6.26335048,4291.2,4291.1,0.3392]
[1757361849624,7.05245048,4291.2,4291.1,0.042]
[1757361849841,8.91211935,4291.2,4291.1,0.042]
[1757361850445,9.04151345,4291.2,4291.1,0.042]
[1757361851263,9.25716146,4291.2,4291.1,0.042]
[1757361852130,2.3304591,4291.0,4290.8,0.025]
[1757361852442,9.35595104,4290.9,4290.8,0.025]
[1757361852656,11.09008469,4290.9,4290.8,0.025]
[1757361854359,20.67539288,4290.9,4290.8,0.025]
[1757361855353,20.67539288,4290.9,4290.8,0.3222]
[1757361855354,9.3326055,4290.9,4290.8,0.3222]
[1757361855547,9.3326055,4290.9,4290.8,0.025]
[1757361856068,9.6268055,4290.9,4290.8,0.025]
[1757361856872,10.1217055,4290.9,4290.8,0.025]
[1757361857021,10.5932055,4290.9,4290.8,0.025]
[1757361857376,11.08970914,4290.9,4290.8,0.025]
[1757361861942,18.20970914,4290.9,4290.8,0.025]
[1757361862528,18.20970914,4290.9,4290.8,1e-08]
[1757361862845,18.20970914,4290.9,4289.1,0.04]
[1757361862846,0.792,4290.6,4289.1,0.04]
[1757361863027,3.12305666,4289.9,4289.1,0.04]
[1757361863227,7.71864431,4289.9,4289.1,0.04]
[1757361863488,9.15820241,4289.9,4289.1,0.04]
[1757361864032,19.27820241,4289.9,4289.1,0.04]
[1757361864384,21.43912108,4289.9,4289.8,1e-08]
[1757361864532,3.12343709,4289.2,4289.1,0.04]
[1757361864728,16.33382474,4289.2,4289.1,0.04]
[1757361864932,18.06744301,4289.2,4289.1,0.04]
[1757361866332,17.5710792,4289.2,4289.1,0.04]
[1757361866662,19.83898717,4289.2,4289.1,0.04]
[1757361867968,14.42973916,4289.2,4289.1,0.04]
[1757361868148,18.23334506,4289.2,4289.1,0.04]
[1757361868351,18.52754506,4289.2,4289.1,0.04]
[1757361868566,19.83787414,4289.2,4289.1,0.04]
[1757361868768,0.792,4289.1,4288.8,0.002]
[1757361869093,6.12360017,4288.9,4288.8,0.002]
[1757361869230,14.37698269,4288.9,4288.8,0.002]
[1757361869430,14.84812925,4288.9,4288.8,0.002]
[1757361870953,14.16167934,4288.9,4288.8,0.002]
[1757361871443,17.17760017,4288.9,4288.8,0.002]
[1757361871642,19.36041146,4288.9,4288.8,0.002]
[1757361872385,19.23161699,4288.9,4288.8,0.002]
[1757361872697,17.48641699,4288.9,4288.8,0.002]
[1757361872905,20.61516164,4288.9,4288.8,0.002]
[1757361873061,21.32411455,4288.9,4288.8,0.002]
[1757361874941,21.32380176,4288.9,4288.8,0.002]
[1757361879508,21.32480176,4288.9,4288.8,0.002]
[1757361879868,17.38980176,4288.9,4288.8,0.002]
[1757361880074,21.32480176,4288.9,4288.8,0.002]
[1757361882018,17.38980176,4288.9,4288.8,0.002]
[1757361882167,21.32480176,4288.9,4288.8,0.002]
[1757361882361,21.32480176,4288.9,4288.1,0.04]
[1757361882362,3.12387202,4288.4,4288.3,1e-08]
[1757361882567,19.66652951,4288.4,4288.3,1e-08]
[1757361882797,19.64318397,4288.4,4288.3,1e-08]
[1757361883301,20.92373632,4288.4,4288.3,1e-08]
[1757361883476,21.39253632,4288.4,4288.3,1e-08]
[1757361884294,21.60720793,4288.4,4288.3,1e-08]
[1757361884612,21.60720752,4288.4,4288.3,1e-08]
[1757361884826,21.13840859,4288.4,4288.3,1e-08]
[1757361885147,0.792,4287.5,4286.8,1e-08]
[1757361885269,24.5099656,4286.9,4286.8,1e-08]
[1757361885467,24.5099656,4286.9,4285.3,0.4608]
[1757361885468,3.12506891,4286.2,4285.3,0.4608]
[1757361885722,10.2121591,4286.2,4285.3,0.4608]
[1757361885920,12.3809216,4286.2,4285.3,0.4608]
[1757361886218,12.1663365,4286.2,4285.3,0.4608]
[1757361886436,12.16565681,4286.2,4285.3,0.4608]
[1757361887270,7.06006891,4286.2,4286.1,0.354]
[1757361887673,0.792,4286.2,4286.1,0.8148]
[1757361887869,4.729,4286.2,4286.1,0.9907]
[1757361888276,7.06206891,4286.2,4286.1,0.9907]
[1757361888476,7.06306891,4286.2,4286.1,0.9907]
[1757361889215,7.06306891,4286.2,4286.1,0.8148]
[1757361889422,4.73,4286.2,4286.1,0.8148]
[1757361889719,0.792,4286.2,4286.1,0.8148]
[1757361890016,4.729,4286.2,4286.1,0.8148]
[1757361890378,7.06206891,4286.2,4286.1,0.8148]
[1757361891020,7.06206891,4286.2,4286.1,0.354]
[1757361891316,4.729,4286.2,4286.1,0.354]
[1757361891519,4.729,4286.2,4286.1,0.8148]
[1757361891674,4.729,4286.2,4286.1,0.354]
[1757361891675,7.06206891,4286.2,4286.1,0.354]
[1757361892219,4.729,4286.2,4286.1,0.8148]
[1757361892724,0.792,4286.2,4286.1,0.9907]
[1757361892928,4.728,4286.2,4286.1,0.9907]
[1757361893563,7.06106891,4286.2,4286.1,0.354]
[1757361894583,8.48027432,4286.2,4286.1,0.04]
[1757361894847,8.52305553,4286.2,4286.1,0.354]
[1757361895638,3.46865012,4286.2,4286.1,0.354]
[1757361895947,3.46865012,4286.2,4286.1,0.8148]
[1757361895948,4.732,4286.2,4286.1,0.8148]
[1757361896087,7.06506891,4286.2,4286.1,0.8148]
[1757361896288,4.732,4286.2,4286.1,0.8148]
[1757361896679,7.06506891,4286.2,4286.1,0.8148]
[1757361897301,4.732,4286.2,4286.1,0.8148]
[1757361897529,7.06506891,4286.2,4286.1,0.8148]
[1757361898421,7.06406891,4286.2,4286.1,0.354]
[1757361899627,3.12496583,4286.4,4286.1,0.9907]
[1757361899828,0.792,4286.4,4286.2,0.4608]
[1757361900045,2.33305887,4286.3,4286.2,0.4608]
[1757361900245,0.792,4286.4,4286.3,0.314]
[1757361900415,0.792,4286.4,4286.3,0.7748]
[1757361901249,1.791,4287.1,4286.3,0.314]
[1757361901455,0.116,4286.6,4286.3,0.7733]
[1757361901621,0.116,4286.6,4286.4,0.6352]
[1757361902001,0.116,4286.6,4286.5,0.7622]
[1757361902344,0.116,4286.6,4286.5,0.3029]
[1757361903535,0.908,4286.6,4286.5,0.3029]
[1757361903735,0.908,4286.6,4286.1,0.04]
[1757361903736,0.792,4286.5,4286.1,0.04]
[1757361903905,3.12490882,4286.5,4286.1,0.5008]
[1757361904339,0.792,4286.5,4286.4,0.3029]
[1757361904769,0.908,4286.4,4286.1,0.5008]
[1757361904975,0.792,4286.4,4286.1,0.5008]
[1757361905129,3.1248675,4286.6,4286.3,0.3029]
[1757361905340,0.792,4286.6,4286.3,0.3029]
[1757361905809,0.792,4286.5,4286.3,0.3029]
[1757361906328,0.792,4286.6,4286.3,0.3029]
[1757361907861,0.116,4286.3,4286.1,0.042]
[1757361908411,0.116,4286.3,4286.2,0.3029]
[1757361910645,3.15616285,4287.9,4286.2,0.3029]
[1757361910646,1.10759499,4288.0,4286.3,3.0]
[1757361910951,7.62013691,4287.5,4286.4,0.6352]
[1757361911171,0.792,4287.4,4286.8,2.33273947]
[1757361911357,7.62013691,4287.5,4286.8,2.33273947]
[1757361911777,0.792,4287.4,4286.7,2.33274237]
[1757361911980,7.62013691,4287.5,4286.4,0.6352]
[1757361912172,7.62013691,4287.5,4287.3,0.3029]
[1757361912320,0.792,4287.4,4287.3,0.3029]
[1757361912884,0.025,4287.8,4287.3,0.7622]
[1757361913247,0.025,4287.8,4287.3,0.3029]
[1757361913248,2.35719964,4287.8,4287.3,0.3029]
[1757361913450,0.81534554,4287.7,4287.3,0.3029]
[1757361913851,0.81534554,4287.7,4286.4,0.4593]
[1757361913852,0.792,4287.3,4286.4,0.4593]
[1757361914052,1.2822,4287.3,4286.5,9.33390563]
[1757361914442,1.2822,4287.3,4286.6,2.33284879]
[1757361914667,3.61468364,4287.3,4286.5,7.001]
[1757361915052,1.2822,4287.3,4286.5,7.001]
[1757361915286,1.2822,4287.3,4286.6,2.33280271]
[1757361916039,1.2822,4287.3,4286.5,4.001]
[1757361916338,0.4344,4288.0,4287.2,0.3029]
[1757361916537,0.792,4287.9,4287.2,0.3029]
[1757361916862,0.792,4287.9,4287.2,3.09467294]
[1757361917286,3.999,4288.0,4287.2,3.09471768]
[1757361917585,3.999,4288.1,4287.2,0.7622]
[1757361917801,0.792,4288.0,4287.3,2.33242774]
[1757361918109,3.12409649,4288.0,4287.3,2.33242774]
[1757361918392,3.12409649,4288.0,4287.7,0.3029]
[1757361918939,0.817,4287.8,4287.7,0.3029]
[1757361919256,0.025,4287.8,4287.7,0.3029]
[1757361921090,0.817,4287.8,4287.7,0.3029]
[1757361921437,0.116,4287.7,4287.2,2.79182346]
[1757361921655,0.116,4287.4,4287.2,2.79182346]
[1757361922090,0.116,4287.4,4287.3,0.3029]
[1757361923241,0.116,4287.4,4287.3,2.63537031]
[1757361923468,0.025,4287.8,4287.7,2.33225272]
[1757361923722,0.025,4287.8,4287.7,11.26457524]
[1757361923858,0.025,4287.8,4287.7,12.17935272]
[1757361929747,0.025,4287.8,4287.7,12.00345272]
[1757361930236,0.025,4287.8,4287.7,12.17935272]
[1757361930720,0.025,4287.8,4287.7,8.17635272]
[1757361930924,0.025,4287.8,4287.7,12.16935272]
[1757361933201,0.025,4287.8,4287.7,12.26263641]
[1757361934027,0.025,4287.8,4287.7,7.63443641]
[1757361934240,0.025,4287.8,4287.7,11.62443641]
[1757361934394,0.025,4287.8,4287.7,11.53115272]
[1757361934590,0.025,4287.8,4287.7,11.53015272]
[1757361934790,1.2627,4287.8,4287.7,1.79]
[1757361934992,1.2627,4287.8,4287.7,8.778]
[1757361935220,1.2627,4287.8,4287.7,11.11025272]
[1757361935442,1.2627,4287.8,4287.7,8.11025272]
[1757361935589,1.2627,4287.8,4287.7,5.778]
[1757361935776,1.2627,4287.8,4287.7,8.778]
[1757361935973,1.2627,4287.8,4287.7,4.79]
[1757361936294,1.2627,4287.8,4287.7,8.778]
[1757361936603,1.2627,4287.8,4287.7,11.11025272]
[1757361937265,0.7892,4287.8,4287.7,11.11025272]
[1757361938526,0.025,4287.8,4287.7,11.11025272]
[1757361938707,0.025,4287.8,4287.7,8.778]
[1757361938932,0.025,4287.8,4287.7,11.11025272]
[1757361939289,1.2627,4287.8,4287.7,8.776]
[1757361940605,0.7892,4287.8,4287.7,8.776]
[1757361940827,0.7892,4287.8,4286.7,1.79]
[1757361940828,2.33225272,4287.7,4286.7,1.79]
[1757361941028,0.116,4287.4,4286.8,3.985]
[1757361941216,0.3136,4286.9,4286.8,6.31774237]
[1757361941518,0.3136,4286.9,4286.8,9.31774237]
[1757361941714,0.9241,4287.2,4286.9,5.33268057]
[1757361941916,0.4506,4287.2,4287.1,3.0]
[1757361942252,0.116,4287.4,4287.1,3.0]
[1757361942434,0.116,4287.4,4287.2,3.982]
[1757361942599,0.9241,4287.3,4287.2,6.982]
[1757361942799,1.2377,4287.3,4287.2,6.982]
[1757361943418,1.2377,4287.3,4287.2,6.981]
[1757361943601,1.2377,4287.3,4287.2,3.0]
[1757361943802,1.2377,4287.3,4287.2,6.98]
[1757361943803,3.57017031,4287.3,4287.2,6.98]
[1757361944107,3.57017031,4287.3,4287.2,3.98]
[1757361944304,3.57017031,4287.3,4286.7,1.79]
[1757361944305,2.63155321,4287.3,4286.7,1.79]
[1757361944508,2.33262096,4287.1,4286.8,3.982]
[1757361944725,0.3136,4286.9,4286.8,0.002]
[1757361944941,0.3136,4286.9,4286.8,3.982]
[1757361945340,1.2377,4286.9,4286.8,3.982]
[1757361947860,0.3136,4286.9,4286.8,3.982]
[1757361948041,0.116,4287.2,4286.8,4.2721]
[1757361948361,0.3136,4286.9,4286.8,3.982]
[1757361948509,1.2377,4286.9,4286.8,3.982]
[1757361951616,0.4506,4286.9,4286.8,3.982]
[1757361952150,0.116,4287.2,4286.8,4.2721]
[1757361952327,0.4506,4287.1,4286.8,4.2721]
[1757361952739,0.116,4287.2,4286.8,4.2721]
[1757361953268,0.116,4287.2,4286.8,6.60483845]
[1757361953409,0.116,4287.2,4286.8,4.2721]
[1757361957176,11.92379873,4288.2,4286.8,4.2721]
[1757361957177,0.116,4288.5,4287.7,2.33225272]
[1757361957311,0.141,4288.8,4287.7,11.10025272]
[1757361957510,0.141,4288.8,4287.7,12.13035272]
[1757361958625,2.33175297,4288.7,4287.7,12.13035272]
[1757361958831,2.47266815,4288.8,4287.7,11.95445272]
[1757361959860,0.141,4288.8,4287.7,11.95445272]
[1757361960155,0.141,4288.8,4287.7,12.13035272]
[1757361960548,0.141,4288.8,4287.7,12.22363641]
[1757361962672,0.5949,4288.8,4287.7,12.04773641]
[1757361963166,2.47269425,4288.8,4287.7,7.62163641]
[1757361963371,0.8959,4288.6,4287.7,11.50035272]
[1757361964430,0.001,4288.3,4287.7,11.50035272]
[1757361965120,0.001,4288.3,4287.7,11.95515272]
[1757361965321,0.001,4288.3,4287.7,12.13105272]
[1757361965522,0.001,4288.3,4287.7,12.4527667]
[1757361967564,0.001,4288.3,4287.7,12.13105272]
[1757361967787,0.001,4288.3,4287.7,12.22432554]
[1757361969394,0.001,4288.3,4287.7,7.62162554]
[1757361969558,0.001,4288.3,4287.7,11.58862554]
[1757361970386,0.3268,4287.8,4287.7,7.21552554]
[1757361970552,0.7807,4287.8,4287.7,11.08825272]
[1757361970757,0.026,4287.8,4287.7,11.08825272]
[1757361971586,0.3268,4287.8,4287.7,11.08825272]
[1757361971796,1.2227,4287.8,4287.7,11.08825272]
[1757361972367,1.2227,4287.8,4287.7,1.79]
[1757361972588,1.34507,4287.8,4287.7,3.965]
[1757361972767,3.67726833,4287.8,4287.6,1.88328521]
[1757361972966,0.8959,4287.7,4287.3,3.0]
[1757361973173,0.8959,4287.6,4287.5,1.79]
[1757361973379,1.1967,4287.6,4287.5,1.79]
[1757361973659,2.48056833,4287.8,4287.6,5.3322647]
[1757361973660,0.026,4287.8,4287.6,5.3322647]
[1757361974058,0.026,4287.8,4287.7,6.29725272]
[1757361974355,0.026,4287.8,4287.7,3.965]
[1757361974553,0.026,4287.8,4287.7,6.29725272]
[1757361974797,0.3268,4287.8,4287.7,6.29725272]
[1757361975009,0.026,4287.8,4287.7,6.59785272]
[1757361975342,0.026,4287.8,4287.7,9.59785272]
[1757361975750,0.026,4287.8,4287.7,10.05265272]
[1757361975905,0.026,4287.8,4287.7,9.59785272]
[1757361976325,0.026,4287.8,4287.7,9.29725272]
[1757361976551,0.026,4287.8,4287.7,10.05265272]
[1757361976748,0.026,4287.8,4287.7,10.5502667]
[1757361977039,0.026,4287.8,4287.7,10.22855272]
[1757361977225,0.026,4287.8,4287.7,9.59785272]
[1757361978224,0.026,4287.8,4287.7,5.63285272]
[1757361978429,0.026,4287.8,4287.7,9.29625272]
[1757361978959,0.026,4287.8,4287.7,9.29425272]
[1757361980353,0.026,4287.8,4287.7,9.41025272]